[Event "*** MasterClass Titled Tuesday Blitz"]
[Site "Chess.com"]
[Date "2017.08.01"]
[Round "8"]
[White "TregubovP"]
[Black "michaelq2d5"]
[Result "1/2-1/2"]
[WhiteElo "2528"]
[BlackElo "2595"]
[TimeControl "180+2"]
[EndTime "14:52:00 PDT"]
[Termination "Game drawn - insufficient material"]

1. d4 {[%clk 0:03:01.9]} 1... Nf6 {[%clk 0:03:00.5]} 2. c4 {[%clk 0:03:02.5]}
2... e6 {[%clk 0:03:01.8]} 3. Nc3 {[%clk 0:03:02.7]} 3... Bb4 {[%clk 0:03:02.5]}
4. e3 {[%clk 0:03:03.6]} 4... O-O {[%clk 0:03:03.3]} 5. Bd3 {[%clk 0:03:05.2]}
5... c5 {[%clk 0:03:04.3]} 6. Ne2 {[%clk 0:03:05.8]} 6... d5 {[%clk 0:03:05.1]}
7. O-O {[%clk 0:03:06.2]} 7... dxc4 {[%clk 0:02:49.6]} 8. Bxc4 {[%clk
0:03:06.9]} 8... cxd4 {[%clk 0:02:50]} 9. exd4 {[%clk 0:03:07.4]} 9... Nc6
{[%clk 0:02:47.1]} 10. a3 {[%clk 0:03:08.5]} 10... Be7 {[%clk 0:02:46.9]} 11.
Bf4 {[%clk 0:02:57]} 11... b6 {[%clk 0:02:46.6]} 12. d5 {[%clk 0:02:58.2]} 12...
exd5 {[%clk 0:02:02.2]} 13. Nxd5 {[%clk 0:02:58.9]} 13... Bb7 {[%clk 0:01:43]}
14. Nxe7+ {[%clk 0:02:58]} 14... Nxe7 {[%clk 0:01:43.2]} 15. Nc3 {[%clk
0:02:47.5]} 15... Ng6 {[%clk 0:01:36.5]} 16. Bg3 {[%clk 0:02:23.9]} 16... Rc8
{[%clk 0:01:32]} 17. Bb3 {[%clk 0:02:06.5]} 17... Re8 {[%clk 0:01:25.8]} 18.
Qxd8 {[%clk 0:02:04.2]} 18... Rcxd8 {[%clk 0:01:20.6]} 19. Rad1 {[%clk
0:02:05.8]} 19... Bc6 {[%clk 0:01:06.4]} 20. Rxd8 {[%clk 0:02:00]} 20... Rxd8
{[%clk 0:01:07.5]} 21. Rd1 {[%clk 0:02:01.6]} 21... Rxd1+ {[%clk 0:01:08]} 22.
Bxd1 {[%clk 0:02:01.4]} 22... Kf8 {[%clk 0:00:53.4]} 23. Be2 {[%clk 0:01:56.7]}
23... Nd7 {[%clk 0:00:48.6]} 24. Bd6+ {[%clk 0:01:55.7]} 24... Ke8 {[%clk
0:00:49.4]} 25. f3 {[%clk 0:01:46.3]} 25... Ne7 {[%clk 0:00:41.9]} 26. Nb5
{[%clk 0:01:43.8]} 26... a5 {[%clk 0:00:38.6]} 27. Nd4 {[%clk 0:01:38.2]} 27...
Bd5 {[%clk 0:00:33.6]} 28. Bb5 {[%clk 0:01:38.7]} 28... Kd8 {[%clk 0:00:33.9]}
29. Kf2 {[%clk 0:01:33.3]} 29... g6 {[%clk 0:00:30.5]} 30. g4 {[%clk 0:01:33.3]}
30... Nc8 {[%clk 0:00:26.6]} 31. Bg3 {[%clk 0:01:31.6]} 31... Nc5 {[%clk
0:00:22.6]} 32. Ke3 {[%clk 0:01:28.6]} 32... Ke7 {[%clk 0:00:19.2]} 33. h4
{[%clk 0:01:26.2]} 33... Nd6 {[%clk 0:00:19.4]} 34. Be2 {[%clk 0:01:02]} 34...
Nc4+ {[%clk 0:00:20.2]} 35. Bxc4 {[%clk 0:01:03]} 35... Bxc4 {[%clk 0:00:22.2]}
36. Bc7 {[%clk 0:01:03.7]} 36... Nd7 {[%clk 0:00:23.3]} 37. Nc6+ {[%clk
0:00:58.9]} 37... Ke6 {[%clk 0:00:21.9]} 38. Nd4+ {[%clk 0:00:45.8]} 38... Kd5
{[%clk 0:00:20.2]} 39. b3 {[%clk 0:00:42.4]} 39... Bf1 {[%clk 0:00:20.3]} 40. h5
{[%clk 0:00:40.6]} 40... a4 {[%clk 0:00:16.8]} 41. bxa4 {[%clk 0:00:40.2]} 41...
Kc4 {[%clk 0:00:13.2]} 42. a5 {[%clk 0:00:38.9]} 42... bxa5 {[%clk 0:00:12.5]}
43. Bxa5 {[%clk 0:00:38.7]} 43... gxh5 {[%clk 0:00:11.3]} 44. gxh5 {[%clk
0:00:39.1]} 44... Nf6 {[%clk 0:00:13]} 45. Nf5 {[%clk 0:00:36.8]} 45... Nxh5
{[%clk 0:00:11.8]} 46. Nd6+ {[%clk 0:00:38]} 46... Kb3 {[%clk 0:00:13.2]} 47.
Bb4 {[%clk 0:00:39.1]} 47... f6 {[%clk 0:00:12.9]} 48. Ne4 {[%clk 0:00:35.3]}
48... Bh3 {[%clk 0:00:13]} 49. Nc5+ {[%clk 0:00:31.2]} 49... Kc4 {[%clk
0:00:13.8]} 50. Ne4 {[%clk 0:00:32.1]} 50... Be6 {[%clk 0:00:12.5]} 51. Be7
{[%clk 0:00:32.2]} 51... f5 {[%clk 0:00:13.2]} 52. Ng5 {[%clk 0:00:30.2]} 52...
Bg8 {[%clk 0:00:13.3]} 53. a4 {[%clk 0:00:27.5]} 53... h6 {[%clk 0:00:13]} 54.
Nh3 {[%clk 0:00:26.5]} 54... Bd5 {[%clk 0:00:07.9]} 55. a5 {[%clk 0:00:25.5]}
55... Kb5 {[%clk 0:00:08.7]} 56. Bd8 {[%clk 0:00:26.5]} 56... Ng7 {[%clk
0:00:08.2]} 57. Nf4 {[%clk 0:00:23]} 57... Bc6 {[%clk 0:00:08.4]} 58. Bb6 {[%clk
0:00:17.6]} 58... h5 {[%clk 0:00:09]} 59. Bd4 {[%clk 0:00:13.7]} 59... Ne8
{[%clk 0:00:09.7]} 60. Bc3 {[%clk 0:00:14.9]} 60... h4 {[%clk 0:00:10.3]} 61.
Be1 {[%clk 0:00:13.1]} 61... Nd6 {[%clk 0:00:10.2]} 62. Bxh4 {[%clk 0:00:11]}
62... Nc4+ {[%clk 0:00:08.6]} 63. Kd4 {[%clk 0:00:11.8]} 63... Nd2 {[%clk
0:00:09.8]} 64. Ke5 {[%clk 0:00:12.2]} 64... Nxf3+ {[%clk 0:00:09.9]} 65. Kxf5
{[%clk 0:00:13.6]} 65... Nxh4+ {[%clk 0:00:11.8]} 66. Kg4 {[%clk 0:00:15.1]}
66... Nf3 {[%clk 0:00:12.9]} 67. Ne6 {[%clk 0:00:15.1]} 67... Kxa5 {[%clk
0:00:13.6]} 68. Kf4 {[%clk 0:00:16.2]} 68... Nd2 {[%clk 0:00:12.5]} 69. Ke3
{[%clk 0:00:16.9]} 69... Nb3 {[%clk 0:00:13]} 70. Nd4 {[%clk 0:00:17]} 70...
Nxd4 {[%clk 0:00:13.8]} 71. Kxd4 {[%clk 0:00:18.1]} 1/2-1/2

[Event "*** MasterClass Titled Tuesday Blitz"]
[Site "Chess.com"]
[Date "2017.08.01"]
[Round "8"]
[White "Giraffe_Chess"]
[Black "Grootneus"]
[Result "1/2-1/2"]
[WhiteElo "2218"]
[BlackElo "2064"]
[TimeControl "180+2"]
[EndTime "14:52:38 PDT"]
[Termination "Game drawn by repetition"]

1. e4 {[%clk 0:03:02]} 1... c5 {[%clk 0:02:59.5]} 2. Nf3 {[%clk 0:03:02.1]} 2...
Nc6 {[%clk 0:03:00.8]} 3. d4 {[%clk 0:03:02.5]} 3... cxd4 {[%clk 0:03:02.7]} 4.
Nxd4 {[%clk 0:03:04.3]} 4... Nf6 {[%clk 0:03:04.4]} 5. Nc3 {[%clk 0:03:05]} 5...
e5 {[%clk 0:03:05.9]} 6. Ndb5 {[%clk 0:03:05.5]} 6... d6 {[%clk 0:03:07.5]} 7.
Bg5 {[%clk 0:03:05.2]} 7... a6 {[%clk 0:03:08.8]} 8. Na3 {[%clk 0:03:06.4]} 8...
b5 {[%clk 0:03:10.4]} 9. Nd5 {[%clk 0:03:08]} 9... Be7 {[%clk 0:03:11.1]} 10.
Bxf6 {[%clk 0:03:03.6]} 10... Bxf6 {[%clk 0:03:12.3]} 11. c4 {[%clk 0:03:04.3]}
11... b4 {[%clk 0:03:11.6]} 12. Nc2 {[%clk 0:03:05.7]} 12... O-O {[%clk
0:03:12.5]} 13. Ncxb4 {[%clk 0:02:47.9]} 13... Nxb4 {[%clk 0:03:13.6]} 14. Nxb4
{[%clk 0:02:49.8]} 14... Qb6 {[%clk 0:03:08.4]} 15. Qd2 {[%clk 0:02:41.1]} 15...
Rb8 {[%clk 0:03:04.4]} 16. Nd3 {[%clk 0:02:32.8]} 16... Qd4 {[%clk 0:02:33.7]}
17. f3 {[%clk 0:02:28]} 17... Qxc4 {[%clk 0:02:30.5]} 18. b3 {[%clk 0:01:47.1]}
18... Qd4 {[%clk 0:02:24.7]} 19. Rc1 {[%clk 0:01:41.7]} 19... d5 {[%clk
0:02:18]} 20. exd5 {[%clk 0:01:31.9]} 20... Qxd5 {[%clk 0:01:39.8]} 21. Rc5
{[%clk 0:01:02.7]} 21... Qd4 {[%clk 0:01:36.7]} 22. Rc4 {[%clk 0:00:58.6]} 22...
Qd5 {[%clk 0:01:27.4]} 23. Nf2 {[%clk 0:00:44.1]} 23... Qxd2+ {[%clk 0:01:21.2]}
24. Kxd2 {[%clk 0:00:46]} 24... Be6 {[%clk 0:01:22.9]} 25. Rc6 {[%clk
0:00:37.4]} 25... Rfd8+ {[%clk 0:01:21.8]} 26. Bd3 {[%clk 0:00:26.8]} 26... a5
{[%clk 0:00:53.1]} 27. Ke2 {[%clk 0:00:17.8]} 27... Rbc8 {[%clk 0:00:46.7]} 28.
Rhc1 {[%clk 0:00:17]} 28... Rxc6 {[%clk 0:00:42.5]} 29. Rxc6 {[%clk 0:00:18.9]}
29... Be7 {[%clk 0:00:31.5]} 30. Be4 {[%clk 0:00:15.2]} 30... Rc8 {[%clk
0:00:29.9]} 31. Nd3 {[%clk 0:00:12.3]} 31... Rxc6 {[%clk 0:00:26.8]} 32. Bxc6
{[%clk 0:00:14.2]} 32... f6 {[%clk 0:00:27.9]} 33. Bb5 {[%clk 0:00:12.7]} 33...
Bd5 {[%clk 0:00:26.2]} 34. Bc4 {[%clk 0:00:12.8]} 34... Bxc4 {[%clk 0:00:27.3]}
35. bxc4 {[%clk 0:00:14.7]} 35... Kf7 {[%clk 0:00:28.9]} 36. g4 {[%clk
0:00:13.4]} 36... Ke6 {[%clk 0:00:30.2]} 37. Kd2 {[%clk 0:00:11.7]} 37... g6
{[%clk 0:00:31.6]} 38. h3 {[%clk 0:00:12.3]} 38... f5 {[%clk 0:00:31.9]} 39. Kc3
{[%clk 0:00:12.7]} 39... e4 {[%clk 0:00:21.1]} 40. fxe4 {[%clk 0:00:12.1]} 40...
fxe4 {[%clk 0:00:23]} 41. Nf2 {[%clk 0:00:08.5]} 41... Ke5 {[%clk 0:00:23.6]}
42. Kd2 {[%clk 0:00:08.8]} 42... Bc5 {[%clk 0:00:23.8]} 43. Nd1 {[%clk
0:00:08.7]} 43... Kd4 {[%clk 0:00:24.1]} 44. Ne3 {[%clk 0:00:09.3]} 44... Bb4+
{[%clk 0:00:25]} 45. Ke2 {[%clk 0:00:10.4]} 45... Ba3 {[%clk 0:00:24.2]} 46. h4
{[%clk 0:00:11.3]} 46... Bc1 {[%clk 0:00:25]} 47. Nd5 {[%clk 0:00:11.2]} 47...
Kxc4 {[%clk 0:00:23.8]} 48. Nf6 {[%clk 0:00:12.8]} 48... e3 {[%clk 0:00:21.9]}
49. Nxh7 {[%clk 0:00:13.5]} 49... Kc3 {[%clk 0:00:22]} 50. Nf8 {[%clk
0:00:14.6]} 50... Kb2 {[%clk 0:00:23.6]} 51. Nxg6 {[%clk 0:00:16.1]} 51... Kxa2
{[%clk 0:00:25.1]} 52. h5 {[%clk 0:00:17.5]} 52... Kb3 {[%clk 0:00:26]} 53. h6
{[%clk 0:00:18.8]} 53... a4 {[%clk 0:00:27.6]} 54. h7 {[%clk 0:00:20.2]} 54...
Bb2 {[%clk 0:00:29.3]} 55. Nf4 {[%clk 0:00:03.7]} 55... a3 {[%clk 0:00:18.9]}
56. Nd3 {[%clk 0:00:04.8]} 56... Bg7 {[%clk 0:00:12.4]} 57. Kxe3 {[%clk
0:00:05.1]} 57... Kc2 {[%clk 0:00:05.6]} 58. Ke4 {[%clk 0:00:03.4]} 58... Kc3
{[%clk 0:00:02.4]} 59. Nc1 {[%clk 0:00:03.7]} 59... Kb2 {[%clk 0:00:02.4]} 60.
Nd3+ {[%clk 0:00:05.1]} 60... Kc3 {[%clk 0:00:03.6]} 61. Nc1 {[%clk 0:00:06.1]}
61... Kc2 {[%clk 0:00:05.2]} 62. Nd3 {[%clk 0:00:06.5]} 62... Kc3 {[%clk
0:00:05.2]} 63. Nc1 {[%clk 0:00:07.7]} 63... Kc2 {[%clk 0:00:05.8]} 64. Na2
{[%clk 0:00:07.9]} 64... Kb2 {[%clk 0:00:05.9]} 65. Nb4 {[%clk 0:00:08.8]} 65...
Kb3 {[%clk 0:00:07.4]} 66. Nd3 {[%clk 0:00:09.3]} 66... Kc3 {[%clk 0:00:05.9]}
67. Nc1 {[%clk 0:00:08.9]} 67... Kc2 {[%clk 0:00:05.5]} 68. Nd3 {[%clk
0:00:08.7]} 68... Kc3 {[%clk 0:00:06.4]} 1/2-1/2

[Event "*** MasterClass Titled Tuesday Blitz"]
[Site "Chess.com"]
[Date "2017.08.01"]
[Round "8"]
[White "dretch"]
[Black "Gordima"]
[Result "0-1"]
[WhiteElo "2537"]
[BlackElo "2607"]
[TimeControl "180+2"]
[EndTime "14:53:07 PDT"]
[Termination "Gordima won on time"]

1. d4 {[%clk 0:03:02]} 1... d5 {[%clk 0:02:58.8]} 2. c4 {[%clk 0:03:02.7]} 2...
e6 {[%clk 0:03:00.1]} 3. Nc3 {[%clk 0:03:03.7]} 3... a6 {[%clk 0:03:01.7]} 4.
cxd5 {[%clk 0:03:04.4]} 4... exd5 {[%clk 0:03:03.6]} 5. Bf4 {[%clk 0:03:05.6]}
5... Nf6 {[%clk 0:03:03.5]} 6. e3 {[%clk 0:03:04.7]} 6... Bd6 {[%clk 0:03:04.9]}
7. Bg5 {[%clk 0:03:05.4]} 7... Be6 {[%clk 0:03:04.6]} 8. Bd3 {[%clk 0:03:05.6]}
8... Nbd7 {[%clk 0:03:04.6]} 9. Nge2 {[%clk 0:03:06.1]} 9... h6 {[%clk 0:03:05]}
10. Bf4 {[%clk 0:03:04.1]} 10... Qe7 {[%clk 0:03:04.7]} 11. O-O {[%clk
0:03:03.6]} 11... O-O {[%clk 0:03:05]} 12. Qb3 {[%clk 0:03:02.2]} 12... c5
{[%clk 0:03:02.3]} 13. Bxd6 {[%clk 0:03:02.6]} 13... Qxd6 {[%clk 0:03:02.8]} 14.
dxc5 {[%clk 0:03:04.3]} 14... Nxc5 {[%clk 0:03:02.9]} 15. Qa3 {[%clk 0:03:05.6]}
15... Rfd8 {[%clk 0:03:01.4]} 16. Rfd1 {[%clk 0:03:02.8]} 16... Ng4 {[%clk
0:02:59.7]} 17. Ng3 {[%clk 0:03:03]} 17... h5 {[%clk 0:02:54.7]} 18. Be2 {[%clk
0:02:58.9]} 18... h4 {[%clk 0:02:29.4]} 19. Bxg4 {[%clk 0:02:52.2]} 19... hxg3
{[%clk 0:02:28.8]} 20. hxg3 {[%clk 0:02:52.8]} 20... Bxg4 {[%clk 0:02:20.9]} 21.
Rxd5 {[%clk 0:02:53.9]} 21... Qxd5 {[%clk 0:02:21.6]} 22. Nxd5 {[%clk
0:02:55.2]} 22... Rxd5 {[%clk 0:02:21.4]} 23. e4 {[%clk 0:02:56.4]} 23... Re5
{[%clk 0:01:54.9]} 24. f3 {[%clk 0:02:56.3]} 24... Bd7 {[%clk 0:01:44]} 25. Qc3
{[%clk 0:02:48.2]} 25... Rae8 {[%clk 0:01:39.6]} 26. b4 {[%clk 0:02:35.8]} 26...
Na4 {[%clk 0:01:39.5]} 27. Qc7 {[%clk 0:02:36.7]} 27... Bc6 {[%clk 0:01:39.4]}
28. Rd1 {[%clk 0:02:33.7]} 28... Nc3 {[%clk 0:01:32]} 29. Rd2 {[%clk 0:02:30.7]}
29... R5e7 {[%clk 0:01:14.1]} 30. Qb6 {[%clk 0:02:20.2]} 30... Na4 {[%clk
0:01:09.2]} 31. Qa7 {[%clk 0:02:06.4]} 31... g6 {[%clk 0:01:10.1]} 32. g4 {[%clk
0:02:07]} 32... Rc8 {[%clk 0:00:58.2]} 33. Rd6 {[%clk 0:02:02.5]} 33... Nc3
{[%clk 0:00:54.7]} 34. Qc5 {[%clk 0:01:52]} 34... Na4 {[%clk 0:00:48.9]} 35. Qg5
{[%clk 0:01:50.4]} 35... Rce8 {[%clk 0:00:46.6]} 36. Rd3 {[%clk 0:01:33.9]}
36... Rd7 {[%clk 0:00:46.4]} 37. Rxd7 {[%clk 0:01:32.3]} 37... Bxd7 {[%clk
0:00:47.2]} 38. Qf6 {[%clk 0:01:32.1]} 38... Bc6 {[%clk 0:00:45.4]} 39. Qd4
{[%clk 0:01:32.5]} 39... Re7 {[%clk 0:00:39.9]} 40. Qd8+ {[%clk 0:01:32.6]}
40... Re8 {[%clk 0:00:40.9]} 41. Qd4 {[%clk 0:01:30.9]} 41... Re7 {[%clk
0:00:41.7]} 42. Kh2 {[%clk 0:01:29.3]} 42... Rd7 {[%clk 0:00:42.3]} 43. Qe3
{[%clk 0:01:24.1]} 43... Nb2 {[%clk 0:00:41.8]} 44. Qc3 {[%clk 0:01:22.3]} 44...
Nd1 {[%clk 0:00:40.1]} 45. Qc5 {[%clk 0:01:14.4]} 45... Rd2 {[%clk 0:00:34.8]}
46. a3 {[%clk 0:01:04]} 46... Re2 {[%clk 0:00:33.6]} 47. Kg3 {[%clk 0:00:56.5]}
47... Ne3 {[%clk 0:00:33.2]} 48. Kf4 {[%clk 0:00:56.3]} 48... Nxg2+ {[%clk
0:00:33.5]} 49. Kg5 {[%clk 0:00:57]} 49... Re3 {[%clk 0:00:26.4]} 50. Kh6 {[%clk
0:00:18.7]} 50... Rxf3 {[%clk 0:00:26.8]} 51. Qd4 {[%clk 0:00:14.3]} 51... Rh3+
{[%clk 0:00:27.3]} 52. Kg5 {[%clk 0:00:14]} 52... Rh8 {[%clk 0:00:15.7]} 53. Kf6
{[%clk 0:00:10.4]} 53... Nf4 {[%clk 0:00:11.9]} 54. Qe5 {[%clk 0:00:02.9]} 54...
Ne6 {[%clk 0:00:11.2]} 55. Ke7 {[%clk 0:00:04]} 55... Rh7 {[%clk 0:00:06.2]} 56.
Qb8+ {[%clk 0:00:03.9]} 56... Kg7 {[%clk 0:00:06.8]} 57. Qe5+ {[%clk 0:00:05]}
57... Kh6 {[%clk 0:00:06.5]} 58. Qh2+ {[%clk 0:00:05.4]} 58... Kg7 {[%clk
0:00:07.3]} 59. Qe5+ {[%clk 0:00:06.5]} 59... Kg8 {[%clk 0:00:05.8]} 60. Kf6
{[%clk 0:00:07.2]} 60... Rg7 {[%clk 0:00:05.8]} 61. Qb8+ {[%clk 0:00:07.8]}
61... Nf8 {[%clk 0:00:05.9]} 62. e5 {[%clk 0:00:06.8]} 62... Bd5 {[%clk
0:00:05.6]} 63. Qd8 {[%clk 0:00:06.5]} 63... Bc6 {[%clk 0:00:05.9]} 64. Qc8
{[%clk 0:00:05.2]} 64... g5 {[%clk 0:00:06.9]} 65. Ke7 {[%clk 0:00:05.4]} 65...
f6+ {[%clk 0:00:05.5]} 66. Kxf6 {[%clk 0:00:05.2]} 66... Rg6+ {[%clk 0:00:06.2]}
67. Ke7 {[%clk 0:00:03.8]} 67... Re6+ {[%clk 0:00:07]} 68. Qxe6+ {[%clk
0:00:04]} 68... Nxe6 {[%clk 0:00:08.9]} 69. Kxe6 {[%clk 0:00:05.7]} 69... Kg7
{[%clk 0:00:05.1]} 70. Kf5 {[%clk 0:00:04.2]} 70... Kf7 {[%clk 0:00:06.6]} 71.
Kxg5 {[%clk 0:00:04.6]} 71... Ke6 {[%clk 0:00:08.1]} 72. Kf4 {[%clk 0:00:04.6]}
72... Be8 {[%clk 0:00:07.3]} 73. Ke4 {[%clk 0:00:05.6]} 73... Bc6+ {[%clk
0:00:04.1]} 74. Kf4 {[%clk 0:00:03.8]} 74... Ba4 {[%clk 0:00:04.2]} 75. Ke4
{[%clk 0:00:04.8]} 75... b6 {[%clk 0:00:05.4]} 76. Kf4 {[%clk 0:00:03.4]} 76...
Bc2 {[%clk 0:00:05.9]} 77. g5 {[%clk 0:00:02.3]} 77... Bb1 {[%clk 0:00:06.9]}
78. a4 {[%clk 0:00:03.4]} 78... Bc2 {[%clk 0:00:07.8]} 79. a5 {[%clk 0:00:03.9]}
79... b5 {[%clk 0:00:08.9]} 0-1

[Event "*** MasterClass Titled Tuesday Blitz"]
[Site "Chess.com"]
[Date "2017.08.01"]
[Round "9"]
[White "ChessQueen"]
[Black "jb2mix"]
[Result "0-1"]
[WhiteElo "2574"]
[BlackElo "2488"]
[TimeControl "180+2"]
[EndTime "14:59:36 PDT"]
[Termination "jb2mix won by checkmate"]

1. e4 {[%clk 0:03:01.9]} 1... e5 {[%clk 0:02:40.6]} 2. Nf3 {[%clk 0:03:01.7]}
2... Nc6 {[%clk 0:02:40.9]} 3. Bc4 {[%clk 0:03:02.6]} 3... Bc5 {[%clk
0:02:39.8]} 4. O-O {[%clk 0:03:03.3]} 4... Nf6 {[%clk 0:02:40.2]} 5. d3 {[%clk
0:03:04.5]} 5... a6 {[%clk 0:02:39.6]} 6. a4 {[%clk 0:03:00.1]} 6... O-O {[%clk
0:02:36.4]} 7. Nc3 {[%clk 0:02:56.6]} 7... h6 {[%clk 0:02:36.7]} 8. h3 {[%clk
0:02:55]} 8... d6 {[%clk 0:02:37.4]} 9. Bd2 {[%clk 0:02:41.5]} 9... Be6 {[%clk
0:02:36]} 10. Bxe6 {[%clk 0:02:32.8]} 10... fxe6 {[%clk 0:02:36.1]} 11. Qe2
{[%clk 0:02:33.8]} 11... Qe8 {[%clk 0:02:36.3]} 12. Nd1 {[%clk 0:02:27.4]} 12...
Nh5 {[%clk 0:02:37.1]} 13. Kh1 {[%clk 0:02:24.2]} 13... Nf4 {[%clk 0:02:36.4]}
14. Bxf4 {[%clk 0:02:24.6]} 14... Rxf4 {[%clk 0:02:38.3]} 15. c3 {[%clk
0:02:23.4]} 15... Qf7 {[%clk 0:02:38.4]} 16. Ne3 {[%clk 0:02:16.8]} 16... Rf8
{[%clk 0:02:36.7]} 17. b4 {[%clk 0:02:16.7]} 17... Bb6 {[%clk 0:02:36.6]} 18.
Ra2 {[%clk 0:02:10]} 18... Qh5 {[%clk 0:02:34.9]} 19. Rg1 {[%clk 0:01:27.6]}
19... Rxf3 {[%clk 0:02:29]} 20. gxf3 {[%clk 0:01:28.3]} 20... Qxh3# {[%clk
0:02:29.6]} 0-1

[Event "*** MasterClass Titled Tuesday Blitz"]
[Site "Chess.com"]
[Date "2017.08.01"]
[Round "9"]
[White "popov_m"]
[Black "dretch"]
[Result "0-1"]
[WhiteElo "2425"]
[BlackElo "2547"]
[TimeControl "180+2"]
[EndTime "15:01:05 PDT"]
[Termination "dretch won by resignation"]

1. d4 {[%clk 0:03:01.9]} 1... d5 {[%clk 0:03:00.9]} 2. Bf4 {[%clk 0:03:02.2]}
2... c5 {[%clk 0:03:01.3]} 3. e3 {[%clk 0:03:02.9]} 3... Nc6 {[%clk 0:03:02.4]}
4. c3 {[%clk 0:03:01.9]} 4... Nf6 {[%clk 0:03:02.5]} 5. Nd2 {[%clk 0:03:02.2]}
5... Bf5 {[%clk 0:03:02.3]} 6. Ngf3 {[%clk 0:02:57.9]} 6... e6 {[%clk
0:03:03.2]} 7. Bb5 {[%clk 0:02:40.5]} 7... Nd7 {[%clk 0:02:57.9]} 8. Ne5 {[%clk
0:02:16.3]} 8... Ncxe5 {[%clk 0:02:56.5]} 9. Bxe5 {[%clk 0:02:18.2]} 9... a6
{[%clk 0:02:55.2]} 10. Bxd7+ {[%clk 0:02:17.8]} 10... Qxd7 {[%clk 0:02:56.8]}
11. Qh5 {[%clk 0:01:25.4]} 11... Bg6 {[%clk 0:02:51.9]} 12. Qh3 {[%clk
0:01:24.4]} 12... Qb5 {[%clk 0:02:49.9]} 13. c4 {[%clk 0:00:28.3]} 13... Qxb2
{[%clk 0:02:49.7]} 14. O-O {[%clk 0:00:28.9]} 14... Qxd2 {[%clk 0:02:50.6]} 15.
cxd5 {[%clk 0:00:30.1]} 15... Qd3 {[%clk 0:02:41.7]} 16. dxe6 {[%clk 0:00:26.2]}
16... Qf5 {[%clk 0:02:42.4]} 17. Qg3 {[%clk 0:00:22.1]} 17... Qxe6 {[%clk
0:02:40.3]} 18. Qf3 {[%clk 0:00:18]} 18... f6 {[%clk 0:02:31.7]} 19. Qxb7 {[%clk
0:00:17.9]} 19... Qc8 {[%clk 0:02:32.7]} 20. Qd5 {[%clk 0:00:13.2]} 20... Bf7
{[%clk 0:02:22.2]} 21. Qe4 {[%clk 0:00:13.6]} 21... fxe5 {[%clk 0:02:23]} 22.
Qxe5+ {[%clk 0:00:15.1]} 22... Qe6 {[%clk 0:02:23.4]} 0-1

[Event "*** MasterClass Titled Tuesday Blitz"]
[Site "Chess.com"]
[Date "2017.08.01"]
[Round "9"]
[White "silverback96"]
[Black "AllStarShark"]
[Result "0-1"]
[WhiteElo "2121"]
[BlackElo "2324"]
[TimeControl "180+2"]
[EndTime "15:01:55 PDT"]
[Termination "AllStarShark won by resignation"]

1. g3 {[%clk 0:03:01.9]} 1... d5 {[%clk 0:02:56.8]} 2. Bg2 {[%clk 0:03:03.8]}
2... c6 {[%clk 0:02:50.2]} 3. c4 {[%clk 0:03:05.7]} 3... e5 {[%clk 0:02:49.4]}
4. d4 {[%clk 0:03:05.6]} 4... e4 {[%clk 0:02:49.9]} 5. Nh3 {[%clk 0:03:02.8]}
5... Nf6 {[%clk 0:02:47]} 6. Bg5 {[%clk 0:03:02.4]} 6... Nbd7 {[%clk 0:02:45]}
7. f3 {[%clk 0:03:02.7]} 7... h6 {[%clk 0:02:36.9]} 8. Bxf6 {[%clk 0:03:01.6]}
8... Nxf6 {[%clk 0:02:38.8]} 9. fxe4 {[%clk 0:03:02.6]} 9... Nxe4 {[%clk
0:02:38.5]} 10. Bxe4 {[%clk 0:03:03.5]} 10... Bxh3 {[%clk 0:02:37.2]} 11. Bf3
{[%clk 0:03:01.7]} 11... dxc4 {[%clk 0:02:35.6]} 12. Qa4 {[%clk 0:03:00.9]}
12... Qxd4 {[%clk 0:02:29.9]} 13. Bxc6+ {[%clk 0:03:00.8]} 13... Bd7 {[%clk
0:02:07.4]} 14. Bxd7+ {[%clk 0:02:56.4]} 14... Qxd7 {[%clk 0:02:09.3]} 15. Qxc4
{[%clk 0:02:58.2]} 15... Rc8 {[%clk 0:02:03.9]} 16. Qe4+ {[%clk 0:02:59.4]}
16... Be7 {[%clk 0:02:04.4]} 17. Nc3 {[%clk 0:03:00.4]} 17... O-O {[%clk
0:02:04.3]} 18. O-O {[%clk 0:03:01.3]} 18... Rfe8 {[%clk 0:01:55.8]} 19. Kg2
{[%clk 0:03:01.9]} 19... Bf6 {[%clk 0:01:53.8]} 20. Qf3 {[%clk 0:02:45.2]} 20...
Bxc3 {[%clk 0:01:49.5]} 21. bxc3 {[%clk 0:02:44.9]} 21... Qc6 {[%clk 0:01:30.4]}
22. Qxc6 {[%clk 0:02:29.3]} 22... Rxc6 {[%clk 0:01:32.3]} 23. Rac1 {[%clk
0:02:29.1]} 23... Rxe2+ {[%clk 0:01:31.2]} 24. Rf2 {[%clk 0:02:31.3]} 24... Rce6
{[%clk 0:01:20.7]} 25. Kf3 {[%clk 0:02:29.5]} 25... R6e3+ {[%clk 0:01:16.7]} 26.
Kf4 {[%clk 0:02:30.8]} 26... Rxf2+ {[%clk 0:01:15.9]} 27. Kxe3 {[%clk
0:02:32.7]} 27... Rxh2 {[%clk 0:01:13.3]} 28. a4 {[%clk 0:02:32.6]} 28... Ra2
{[%clk 0:01:13.1]} 29. Rb1 {[%clk 0:02:33.8]} 29... b6 {[%clk 0:01:13.5]} 30.
Rb4 {[%clk 0:02:34.7]} 30... Ra3 {[%clk 0:01:11.8]} 31. Rc4 {[%clk 0:02:35.7]}
31... g6 {[%clk 0:01:10.7]} 32. Kd3 {[%clk 0:02:36.1]} 32... Kg7 {[%clk
0:01:11.8]} 33. g4 {[%clk 0:02:36.6]} 33... g5 {[%clk 0:01:08.4]} 34. Kc2 {[%clk
0:02:37.7]} 34... Ra1 {[%clk 0:01:02.3]} 35. Kb2 {[%clk 0:02:37.6]} 35... Rg1
{[%clk 0:01:03.1]} 36. Rc7 {[%clk 0:02:39]} 36... a5 {[%clk 0:00:52.1]} 37. Rc6
{[%clk 0:02:38.6]} 37... Rxg4 {[%clk 0:00:52.2]} 38. Rxb6 {[%clk 0:02:39.9]}
38... Rxa4 {[%clk 0:00:52.3]} 39. Kb3 {[%clk 0:02:39.7]} 39... Ra1 {[%clk
0:00:52.6]} 40. c4 {[%clk 0:02:41.2]} 40... Rb1+ {[%clk 0:00:52.9]} 0-1